bitfinex/quotes_SOLUSD_20251128
["timestamp","ask_amount","ask_price","bid_price","bid_amount"]
[1764292504173,19.16525738,140.15,140.12,0.67]
[1764292504375,0.67,140.14,140.05,7.14030703]
[1764292504563,16.308864,140.11,140.08,9.09674393]
[1764292504760,19.508864,140.11,140.08,9.09674393]
[1764292505179,19.508864,140.11,140.08,9.76674393]
[1764292505559,20.178864,140.11,140.07,9.09674393]
[1764292505768,3.87,140.11,140.07,9.09674393]
[1764292505955,0.67,140.1,140.07,9.09674393]
[1764292506157,0.67,140.1,140.06,0.67]
[1764292506158,15.94821317,140.09,140.06,0.67]
[1764292506356,15.94821317,140.09,140.05,9.09674393]
[1764292506554,15.94821317,140.09,140.04,9.09674393]
[1764292506555,3.87,140.08,140.04,9.09674393]
[1764292506752,8.80994492,140.07,140.01,7.14228064]
[1764292506970,9.47994492,140.07,140.02,9.09674393]
[1764292507170,16.308864,140.04,140.01,0.67]
[1764292507366,16.308864,140.03,139.99,9.76674393]
[1764292507778,16.978864,140.03,139.99,9.76674393]
[1764292507980,0.67,140.03,139.99,9.76674393]
[1764292508156,0.67,140.03,139.99,9.09674393]
[1764292508664,7.81145582,140.03,140.0,9.09674393]
[1764292508863,12.00994492,140.04,140.01,9.09674393]
[1764292509070,3.2,140.04,140.02,9.76674393]
[1764292509591,3.2,140.04,140.03,9.76674393]
[1764292510993,9.51994492,140.07,140.0,17.85668903]
[1764292511186,9.51994492,140.07,140.04,9.09674393]
[1764292511390,8.80994492,140.07,140.05,9.09674393]
[1764292512276,15.94944986,140.07,140.05,9.09674393]
[1764292512477,15.94944986,140.07,140.04,9.09674393]
[1764292513771,3.22,140.08,140.06,9.09674393]
[1764292513972,3.22,140.08,140.07,9.09674393]
[1764292514591,3.2,140.1,140.07,9.75674393]
[1764292515692,9.51994492,140.15,140.09,9.09674393]
[1764292515899,25.11880892,140.13,140.11,9.09674393]
[1764292516081,25.11880892,140.13,140.08,0.66]
[1764292516389,3.2,140.14,140.12,9.09674393]
[1764292517307,3.91,140.14,140.12,9.09674393]
[1764292517602,3.2,140.14,140.12,9.09674393]
[1764292517803,12.00994492,140.14,140.12,9.09674393]
[1764292518595,12.00994492,140.14,140.12,5.21995438]
[1764292520214,8.80994492,140.16,140.13,13.01607884]
[1764292520416,8.80994492,140.19,140.15,5.21995438]
[1764292520608,3.2,140.18,140.16,5.21995438]
[1764292520990,3.2,140.18,140.13,7.79612446]
[1764292521308,3.2,140.18,140.14,0.66]
[1764292521514,3.91,140.18,140.15,5.21995438]
[1764292521818,9.51994492,140.17,140.12,7.79658094]
[1764292521990,9.51994492,140.17,140.13,5.21995438]
[1764292522313,7.84501323,140.16,140.13,5.21995438]
[1764292522508,3.2,140.15,140.13,5.21995438]
[1764292523291,3.2,140.15,140.14,5.87995438]
[1764292523490,3.2,140.15,140.14,5.21995438]
[1764292523896,3.2,140.15,140.14,5.87995438]
[1764292524296,3.2,140.15,140.14,0.66]
[1764292524501,3.2,140.15,140.14,5.87995438]
[1764292524685,3.2,140.15,140.14,5.21995438]
[1764292524890,3.2,140.15,140.14,0.66]
[1764292525114,3.2,140.15,140.14,5.87995438]
[1764292525912,3.2,140.15,140.09,24.98390478]
[1764292526110,25.11880892,140.14,140.11,5.21995438]
[1764292526307,16.308864,140.14,140.12,5.21995438]
[1764292526507,3.2,140.15,140.12,5.21995438]
[1764292526718,10.33526807,140.15,140.12,5.87995438]
[1764292527121,10.33526807,140.15,140.12,0.66]
[1764292527299,3.2,140.15,140.12,0.66]
[1764292527615,3.2,140.15,140.13,5.21995438]
[1764292527915,3.2,140.15,140.13,5.87995438]
[1764292528108,3.2,140.15,140.11,0.66]
[1764292528314,3.2,140.15,140.12,5.21995438]
[1764292528818,10.33522581,140.15,140.12,5.87995438]
[1764292529528,3.2,140.15,140.13,5.87995438]
[1764292530041,3.2,140.15,140.14,5.87995438]
[1764292530693,3.2,140.15,140.13,5.21995438]
[1764292530912,3.2,140.15,140.13,5.87995438]
[1764292532630,10.33529552,140.15,140.12,5.21995438]
[1764292532831,10.33529552,140.15,140.12,5.87995438]
[1764292534447,11.04529552,140.15,140.11,5.21995438]
[1764292534853,10.33529552,140.15,140.11,5.87995438]
[1764292535144,10.33529552,140.15,140.12,0.66]
[1764292535314,9.51994492,140.14,140.11,5.21995438]
[1764292535514,9.51994492,140.14,140.07,0.66]
[1764292535728,8.80994492,140.12,140.08,5.21995438]
[1764292535925,3.2,140.11,140.08,5.21995438]
[1764292536352,3.2,140.11,140.09,5.87995438]
[1764292537752,3.2,140.11,140.07,7.13881922]
[1764292537918,3.2,140.11,140.08,5.21995438]
[1764292538118,3.2,140.11,140.09,5.21995438]
[1764292538930,3.2,140.11,140.09,5.87995438]
[1764292540257,10.33729617,140.11,140.09,5.87995438]
[1764292544760,10.33729617,140.11,140.09,2.85348565]
[1764292545157,3.2,140.11,140.09,2.85348565]
[1764292546454,3.2,140.11,140.1,2.19348565]
[1764292546634,3.2,140.11,140.09,0.69]
[1764292546835,3.2,140.11,140.09,2.88348565]
[1764292549362,3.2,140.11,140.1,2.19348565]
[1764292549564,3.2,140.11,140.09,10.02175025]
[1764292549754,3.2,140.11,140.09,2.88348565]
[1764292551066,3.2,140.11,140.1,2.88348565]
[1764292551254,3.2,140.11,140.1,0.69]
[1764292551765,8.80994492,140.1,140.07,2.19348565]
[1764292551951,9.48994492,140.1,140.06,2.88348565]
[1764292552143,0.68,140.09,140.04,0.69]
[1764292552344,3.2,140.08,140.05,2.19348565]
[1764292552569,3.2,140.08,140.04,2.19348565]
[1764292552764,0.68,140.07,140.04,2.19348565]
[1764292552965,7.14002118,140.06,140.02,2.88348565]
[1764292553262,3.2,140.05,140.02,2.88348565]
[1764292553442,3.2,140.05,140.02,9.3352961]
[1764292553647,3.88,140.05,140.0,2.88348565]
[1764292553846,8.80994492,140.04,140.0,2.88348565]
[1764292554059,9.48994492,140.04,140.0,2.19348565]
[1764292554267,8.80994492,140.04,140.0,2.19348565]
[1764292554460,8.80994492,140.02,139.98,0.79]
[1764292554669,3.2,140.01,139.98,0.1]
[1764292554955,3.2,140.01,139.99,0.69]
[1764292555161,3.2,140.01,139.99,5.92073247]
[1764292555377,3.2,140.01,139.99,5.23073247]
[1764292556057,3.2,140.0,139.99,5.23073247]
[1764292556579,3.2,140.0,139.98,5.33073247]
[1764292556879,3.88,140.0,139.98,0.1]
[1764292557269,11.02290775,140.0,139.98,0.1]
[1764292558567,9.48994492,139.99,139.98,0.1]
[1764292559064,16.6333123,139.99,139.98,0.1]
[1764292559464,21.86404477,139.99,139.98,0.1]
[1764292560388,21.47228286,140.02,139.98,0.1]
[1764292560389,22.15228286,140.02,139.98,0.1]
[1764292560686,16.308864,139.99,139.98,0.1]
[1764292560873,28.31880892,139.99,139.98,0.1]
[1764292561182,28.99880892,139.99,139.98,0.1]
[1764292561385,28.31880892,139.99,139.98,0.1]
[1764292561580,16.308864,140.0,139.98,6.02073247]
[1764292561785,3.2,139.99,139.98,6.02073247]
[1764292562376,3.2,139.99,139.98,5.33073247]
[1764292562986,8.80994492,140.01,139.98,6.02073247]
[1764292563292,3.2,139.99,139.98,13.16461016]
[1764292563593,19.508864,140.0,139.99,0.69]
[1764292563890,8.22576599,140.06,139.99,5.92073247]
[1764292564079,12.00994492,140.05,140.02,5.23073247]
[1764292564587,8.80994492,140.05,140.01,5.92073247]
[1764292564767,8.80994492,140.05,140.02,5.23073247]
[1764292564968,3.2,140.04,140.02,5.92073247]
[1764292565169,3.2,140.04,140.02,5.23073247]
[1764292565370,3.2,140.04,140.02,5.92073247]
[1764292566087,3.2,140.04,140.03,5.23073247]
[1764292566791,8.22576599,140.1,140.03,5.92073247]
[1764292566994,8.22576599,140.1,140.09,5.23073247]
[1764292566995,3.2,140.1,140.09,5.23073247]
[1764292567467,3.2,140.12,140.09,12.36900072]
[1764292567664,3.2,140.12,140.11,5.23073247]
[1764292567892,3.2,140.13,140.11,5.23073247]
[1764292568098,3.2,140.14,140.12,5.23073247]
[1764292568393,3.2,140.14,140.13,5.23073247]
[1764292568806,7.13309624,140.2,140.13,5.23073247]
[1764292568977,3.88,140.19,140.13,0.03]
[1764292569184,3.88,140.19,140.17,5.23073247]
[1764292569387,20.188864,140.19,140.18,5.23073247]
[1764292569882,16.308864,140.19,140.18,5.23073247]
[1764292570107,3.2,140.2,140.18,5.23073247]
[1764292570297,3.2,140.2,140.09,76.98414417]
[1764292570298,3.2,140.2,140.19,5.23073247]
[1764292570780,7.13069078,140.24,140.19,5.23073247]
[1764292570781,3.2,140.23,140.19,5.26073247]
[1764292571008,3.2,140.23,140.17,24.96967967]
[1764292571220,0.7,140.26,140.22,5.23073247]
[1764292571505,0.7,140.26,140.17,24.99967967]
[1764292571506,3.2,140.25,140.24,5.23073247]
[1764292571908,3.9,140.25,140.24,5.23073247]
[1764292572204,3.9,140.25,140.13,12.39142325]
[1764292572205,8.80994492,140.23,140.13,12.39142325]
[1764292572510,16.308864,140.2,140.17,5.23073247]
[1764292572704,3.2,140.19,140.17,5.23073247]
[1764292572890,3.2,140.19,140.18,5.23073247]
[1764292577802,0.69,140.24,140.18,12.39420657]
[1764292578012,0.69,140.24,140.23,5.23073247]
[1764292578293,16.998864,140.24,140.23,5.23073247]
[1764292578506,25.80880892,140.24,140.21,5.23073247]
[1764292578810,0.69,140.23,140.21,5.23073247]
[1764292579315,3.2,140.22,140.2,5.23073247]
[1764292579687,0.69,140.21,140.2,5.23073247]
[1764292579904,0.69,140.21,140.17,7.13407169]
[1764292580097,0.69,140.21,140.19,5.23073247]
[1764292580387,0.69,140.21,140.16,7.13423317]
[1764292580587,0.69,140.21,140.19,9.08023494]
[1764292580796,16.998864,140.21,140.2,9.08023494]
[1764292581286,16.998864,140.21,140.17,9.08023494]
[1764292581889,16.998864,140.21,140.18,9.08023494]
[1764292582090,0.69,140.25,140.2,9.08023494]
[1764292582318,0.69,140.25,140.22,9.08023494]
[1764292582689,0.69,140.25,140.23,9.08023494]
[1764292584017,7.82017383,140.25,140.22,9.08023494]
[1764292584634,11.98994492,140.26,140.23,9.08023494]
[1764292584931,0.69,140.25,140.22,9.08023494]
[1764292585334,7.82020006,140.25,140.21,9.08023494]
[1764292585532,8.80994492,140.24,140.19,9.08023494]
[1764292585734,3.18,140.23,140.19,9.08023494]
[1764292585906,3.18,140.23,140.18,9.08023494]
[1764292585907,3.87,140.23,140.18,9.08023494]
[1764292586106,0.69,140.22,140.18,9.08023494]
[1764292587033,0.69,140.22,140.19,9.08023494]
[1764292588625,7.82170952,140.22,140.19,9.08023494]
[1764292588833,7.82170952,140.22,140.18,9.08023494]
[1764292589129,0.69,140.21,140.18,9.08023494]
[1764292589332,0.69,140.21,140.17,9.08023494]
[1764292589333,7.82221361,140.21,140.17,9.08023494]
[1764292589506,7.82221361,140.21,140.16,16.21485352]
[1764292589701,3.87,140.2,140.16,16.21485352]
[1764292590329,0.69,140.19,140.15,9.08023494]
[1764292591533,0.69,140.19,140.15,16.21536883]
[1764292593133,32.94102064,140.21,140.17,9.08023494]
[1764292593330,3.18,140.2,140.17,9.08023494]
[1764292593632,3.87,140.2,140.17,9.08023494]
[1764292594833,0.69,140.19,140.16,9.08023494]
[1764292595039,9.77023494,140.19,140.13,9.08023494]
[1764292595236,34.19904386,140.18,140.12,9.08023494]
[1764292595535,19.39483869,140.17,140.11,16.21736496]
[1764292595734,9.08023494,140.15,140.09,9.08023494]
[1764292595952,12.26023494,140.14,140.08,9.08023494]
[1764292596308,9.08023494,140.12,140.06,9.08023494]
[1764292596542,16.308864,140.1,140.05,9.08023494]
[1764292596833,17.89017986,140.09,140.03,9.08023494]
[1764292597023,3.18,140.08,140.03,9.08023494]
[1764292597334,7.13928749,140.07,140.02,9.08023494]
[1764292597539,16.90952243,140.07,140.0,0.03]
[1764292597749,0.69,140.06,140.01,9.08023494]
[1764292597945,0.69,140.06,139.97,25.00535828]
[1764292597946,3.18,140.05,139.98,0.13]
[1764292598114,3.18,140.05,140.0,9.08023494]
[1764292598321,3.18,140.05,139.99,9.08023494]
[1764292598322,0.69,140.04,139.99,9.08023494]
[1764292598843,16.308864,140.02,139.98,0.1]
[1764292599137,16.308864,140.0,139.98,0.1]
[1764292599557,16.998864,140.0,139.98,0.1]
[1764292599956,0.69,140.03,139.98,9.18023494]
[1764292600253,3.87,140.02,139.98,9.18023494]
[1764292600652,0.72,140.01,139.98,9.18023494]
[1764292601047,0.72,140.01,139.98,0.1]
[1764292601258,0.72,140.01,139.99,9.08023494]
[1764292601663,0.72,140.01,139.98,9.18023494]
[1764292601869,25.11880892,140.04,140.0,9.08023494]
[1764292602160,3.18,140.03,140.01,9.08023494]
[1764292602358,3.18,140.03,140.0,9.08023494]
[1764292602531,3.9,140.03,140.0,9.08023494]
[1764292605355,3.9,140.03,140.0,16.22307122]
[1764292605541,3.9,140.03,140.01,9.08023494]
[1764292605743,3.9,140.03,140.0,16.22307122]
[1764292606254,3.9,140.03,140.0,9.08023494]
[1764292606448,0.72,140.02,140.0,9.08023494]
[1764292606652,0.72,140.02,139.99,9.08023494]
[1764292606854,7.86183992,140.02,139.99,9.08023494]
[1764292607034,16.67178484,140.02,139.98,0.1]
[1764292607238,0.72,140.01,139.98,9.18023494]
[1764292607454,3.18,140.0,139.98,9.18023494]
[1764292607653,3.18,140.0,139.98,0.1]
[1764292607861,0.72,139.99,139.98,0.1]
[1764292608236,3.18,140.0,139.98,9.18023494]
[1764292608466,3.9,140.0,139.98,9.18023494]
[1764292608687,0.72,139.99,139.98,0.1]
[1764292614583,7.86336738,139.99,139.98,0.1]
[1764292615063,0.72,139.99,139.98,0.1]
[1764292615264,0.72,139.99,139.98,9.18023494]
[1764292617156,0.72,139.99,139.98,0.1]
[1764292617353,7.86336738,139.99,139.98,0.1]
[1764292617563,32.9821763,139.99,139.98,0.1]
[1764292618058,25.83880892,139.99,139.98,0.1]
[1764292618459,17.028864,139.99,139.98,9.18023494]
[1764292618671,19.488864,139.99,139.98,0.1]
[1764292618875,20.208864,139.99,139.98,9.18023494]
[1764292619381,20.208864,139.99,139.98,0.83873494]
[1764292619685,19.488864,139.99,139.98,0.83873494]
[1764292619983,20.208864,139.99,139.98,0.83873494]
[1764292620496,19.488864,139.99,139.98,0.83873494]
[1764292620658,9.52994492,140.01,139.98,0.83873494]
[1764292620859,16.67239436,140.01,140.0,9.08023494]
[1764292621085,19.85239436,140.01,140.0,9.08023494]
[1764292621280,19.85239436,140.01,139.99,9.08023494]
[1764292621492,0.72,140.0,139.99,9.08023494]
[1764292622477,0.72,140.0,139.96,7.14489467]
[1764292622674,7.86285714,140.0,139.99,9.08023494]
[1764292624289,0.72,140.0,139.99,9.08023494]
[1764292624582,7.86285714,140.0,139.99,9.08023494]
[1764292626205,0.72,140.0,139.99,9.08023494]
[1764292626700,7.86285714,140.0,139.99,9.08023494]
[1764292627403,11.98994492,140.01,139.99,9.08023494]
[1764292627597,3.18,140.01,140.0,9.08023494]
[1764292628687,3.18,140.01,140.0,16.25309208]
[1764292629202,16.308864,140.05,140.0,25.33332702]
[1764292629422,0.72,140.05,140.03,9.08023494]
[1764292629617,0.72,140.04,140.0,7.14285714]
[1764292629802,50.10453136,140.08,140.03,9.08023494]
[1764292629803,7.13938288,140.07,140.03,9.08023494]
[1764292630005,0.72,140.09,140.06,9.08023494]
[1764292630209,3.18,140.08,140.07,9.08023494]
[1764292631605,16.62760041,140.11,140.07,9.08023494]
[1764292631806,15.94760041,140.11,140.1,9.08023494]
[1764292632009,11.98994492,140.11,140.1,9.08023494]
[1764292632197,3.18,140.11,140.1,9.08023494]
[1764292636136,3.18,140.11,140.02,35.70676524]
[1764292636137,20.168864,140.11,140.04,17.88128424]
[1764292636318,0.68,140.1,140.05,9.08023494]
[1764292636707,0.68,140.1,140.06,9.08023494]
[1764292636922,0.68,140.1,140.03,25.02464399]
[1764292637128,0.68,140.1,140.06,9.08023494]
[1764292637425,7.13826825,140.09,140.06,9.08023494]
[1764292637608,3.18,140.08,140.05,9.08023494]
[1764292637924,3.18,140.08,140.06,9.08023494]
[1764292639114,10.97885015,140.08,140.05,9.08023494]
[1764292639526,10.31885015,140.08,140.04,9.08023494]
[1764292639826,0.66,140.07,140.02,16.22191656]
[1764292640204,0.66,140.07,140.0,25.02946717]
[1764292640540,0.66,140.07,140.02,5.22776689]
[1764292640541,5.88776689,140.07,140.02,5.22776689]
[1764292640707,14.03771181,140.06,140.01,5.22776689]
[1764292640903,7.1408169,140.04,139.95,25.00893175]
[1764292641108,8.80994492,140.03,139.98,5.22776689]
[1764292641316,3.84,140.02,139.98,5.22776689]
[1764292641728,0.66,140.01,139.98,5.22776689]
[1764292642823,0.66,140.01,139.97,12.37189895]
[1764292643130,0.66,140.01,139.98,5.22776689]
[1764292643813,7.80239663,140.01,139.97,7.14413206]
[1764292644125,7.80239663,140.01,139.97,12.37189895]
[1764292644340,0.66,140.0,139.97,12.37189895]
[1764292645036,3.18,139.99,139.97,5.22776689]
[1764292645219,3.18,139.99,139.96,12.3726419]
[1764292646537,3.18,140.0,139.96,12.3726419]
[1764292646849,3.84,140.0,139.96,12.3726419]
[1764292647646,0.66,139.99,139.95,12.37305453]
[1764292648333,0.66,139.99,139.94,78.50909091]
[1764292648529,0.66,139.99,139.94,83.7368578]
[1764292648737,5.88776689,139.99,139.94,78.50909091]
[1764292648936,0.66,139.99,139.94,83.7368578]
[1764292649151,3.84,139.98,139.94,83.7368578]
[1764292649436,10.98411041,139.98,139.94,83.7368578]
[1764292649640,0.66,139.97,139.94,83.7368578]
[1764292650337,0.66,139.97,139.95,5.22776689]
[1764292650635,0.66,139.97,139.95,2.19770364]
[1764292650938,0.66,139.97,139.94,87.8525729]
[1764292651339,3.18,139.99,139.96,2.19770364]
[1764292651832,3.84,139.99,139.96,2.19770364]
[1764292652531,10.98341027,139.99,139.96,2.19770364]
[1764292652916,10.32341027,139.99,139.96,2.19770364]
[1764292653236,0.66,139.98,139.96,2.19770364]
[1764292653430,15.9529456,140.0,139.96,2.19770364]
[1764292653632,3.18,139.99,139.97,2.19770364]
[1764292654038,3.84,139.99,139.97,2.19770364]
[1764292654635,3.18,139.99,139.97,2.19770364]
[1764292655439,3.84,139.99,139.95,7.14527655]
[1764292655639,3.84,139.99,139.98,2.19770364]
[1764292655640,3.18,139.99,139.98,2.19770364]
[1764292656022,3.18,139.99,139.95,25.00879923]
[1764292656223,0.66,139.98,139.97,2.19770364]
[1764292656845,3.18,139.99,139.97,2.19770364]
[1764292657232,3.84,139.99,139.97,2.19770364]
[1764292657534,3.84,139.99,139.95,27.20650287]
[1764292658448,3.18,139.99,139.95,27.23650287]
[1764292658644,3.18,139.99,139.95,30.27011983]
[1764292659048,3.18,139.99,139.96,5.2613206]
[1764292659948,3.18,139.99,139.96,0.03]
[1764292662458,0.69,139.98,139.95,7.14527655]
[1764292662744,0.69,139.98,139.94,85.6548185]
[1764292662745,5.9213206,139.98,139.94,85.6548185]
[1764292662924,0.69,139.97,139.94,85.6548185]
[1764292663330,3.87,139.99,139.94,85.6548185]
[1764292663537,0.69,139.98,139.94,85.6548185]
[1764292665749,5.9213206,139.98,139.94,85.6548185]
[1764292666144,0.69,139.98,139.94,85.6548185]
[1764292666346,9.1013206,139.98,139.94,85.6548185]
[1764292667455,5.2313206,139.96,139.94,78.50909091]
[1764292667665,8.4113206,139.95,139.94,78.50909091]
[1764292667955,9.1013206,139.95,139.94,78.50909091]
[1764292669448,16.24672967,139.95,139.94,78.50909091]
[1764292669844,25.05667459,139.95,139.94,78.50909091]
[1764292674065,21.87667459,139.95,139.94,78.50909091]
[1764292674250,25.05667459,139.95,139.94,78.50909091]
[1764292674449,21.87667459,139.95,139.94,78.50909091]
[1764292674764,25.05667459,139.95,139.94,78.50909091]
[1764292678648,21.87667459,139.95,139.94,78.50909091]
[1764292678848,25.05667459,139.95,139.94,78.50909091]
[1764292679049,41.36553859,139.95,139.94,78.50909091]
[1764292679450,62.84704659,139.95,139.94,78.50909091]
[1764292679944,46.53818259,139.95,139.94,38.75036598]
[1764292680172,16.308864,139.87,139.85,79.71763085]
[1764292680375,8.4113206,139.86,139.85,79.71763085]
[1764292680549,14.88218263,139.86,139.85,79.71763085]
[1764292680753,24.23442749,139.86,139.85,79.71763085]
[1764292680949,24.23442749,139.86,139.85,78.87763085]
[1764292680950,30.84114062,139.86,139.85,78.87763085]
[1764292681577,25.11880892,139.82,139.77,81.0261708]
[1764292681781,16.308864,139.78,139.77,81.0261708]
[1764292681960,21.69110171,139.78,139.77,81.0261708]
[1764292682159,27.91104663,139.78,139.77,81.0261708]
[1764292682382,3.77,139.78,139.77,81.0261708]
[1764292682555,21.50306418,139.79,139.77,88.84064715]
[1764292682755,5.24722365,139.8,139.78,0.66]
[1764292682965,5.24722365,139.79,139.77,81.6861708]
[1764292683176,19.488864,139.78,139.77,81.0261708]
[1764292683369,33.54603257,139.78,139.77,81.0261708]
[1764292684567,40.70013186,139.78,139.77,81.0261708]
[1764292685749,25.11880892,139.78,139.77,81.0261708]
[1764292685951,40.70013186,139.78,139.77,81.0261708]
[1764292686677,41.29013186,139.78,139.77,81.0261708]
[1764292686982,24.98126786,139.78,139.77,81.0261708]
[1764292687590,30.22849151,139.78,139.68,82.33471074]
[1764292687890,8.80994492,139.7,139.68,82.33471074]
[1764292688088,5.24722365,139.72,139.68,82.33471074]
[1764292688301,3.18,139.71,139.69,0.66]
[1764292688577,24.73608765,139.7,139.68,82.33471074]
[1764292688776,16.308864,139.69,139.68,82.33471074]
[1764292689080,21.55608765,139.72,139.69,0.66]
[1764292689283,8.80994492,139.7,139.68,82.33471074]
[1764292689511,33.54603257,139.69,139.68,82.33471074]
[1764292690303,75.0,139.76,139.68,82.33471074]
[1764292690477,3.67,139.75,139.69,0.72]
[1764292690686,3.2,139.74,139.7,5.24722365]
[1764292690996,0.49,139.79,139.73,5.24722365]
[1764292690997,3.2,139.76,139.73,5.24722365]
[1764292691301,21.50306418,139.83,139.75,5.24722365]
[1764292691600,3.2,139.82,139.81,5.24722365]
[1764292691799,19.508864,139.82,139.81,5.24722365]
[1764292692103,19.508864,139.82,139.81,5.95722365]
[1764292692306,7.15054165,139.85,139.81,5.95722365]
[1764292692503,3.2,139.84,139.81,5.95722365]
[1764292692803,16.308864,139.82,139.81,5.95722365]
[1764292693117,16.308864,139.82,139.78,5.95722365]
[1764292693403,3.2,139.81,139.78,5.95722365]
[1764292694601,8.80994492,139.82,139.79,0.71]
[1764292694805,3.2,139.8,139.79,0.71]
[1764292695379,16.308864,139.82,139.79,0.71]
[1764292695703,3.2,139.81,139.79,0.71]
[1764292695907,16.308864,139.82,139.79,0.71]
[1764292696206,7.14898566,139.88,139.81,5.24722365]
[1764292696394,12.00994492,139.87,139.83,5.24722365]
[1764292696595,28.31880892,139.87,139.82,5.24722365]
[1764292696792,7.15000715,139.86,139.82,5.24722365]
[1764292696999,14.05716857,139.83,139.78,0.71]
[1764292697188,8.44722365,139.82,139.78,0.71]
[1764292697390,5.24722365,139.81,139.78,0.71]
[1764292698188,25.11880892,139.83,139.78,0.71]
[1764292698385,3.2,139.82,139.78,0.71]
[1764292698804,3.2,139.82,139.78,5.95722365]
[1764292699109,3.2,139.82,139.8,5.24722365]
[1764292699425,3.2,139.81,139.8,5.24722365]
[1764292699723,3.2,139.82,139.81,0.71]
[1764292700520,8.44722365,139.82,139.79,0.71]
[1764292700688,8.44722365,139.82,139.76,13.11226316]
[1764292700890,8.44722365,139.82,139.74,17.8890938]
[1764292700891,5.24722365,139.8,139.75,0.71]
[1764292701187,5.24722365,139.78,139.74,0.71]
[1764292701896,5.24722365,139.77,139.74,0.71]
[1764292702195,16.308864,139.72,139.68,83.04471074]
[1764292702413,3.2,139.71,139.68,83.04471074]
[1764292702718,3.2,139.71,139.69,0.71]
[1764292702926,9.14486373,139.75,139.7,9.14486373]
[1764292703089,3.2,139.74,139.72,9.14486373]
[1764292703285,16.308864,139.73,139.69,0.71]
[1764292703490,16.308864,139.73,139.71,9.14486373]
[1764292703793,8.80994492,139.73,139.71,9.14486373]
[1764292704200,7.80994492,139.73,139.71,9.14486373]
[1764292704815,14.96666751,139.73,139.71,9.14486373]
[1764292705021,7.80994492,139.73,139.71,9.14486373]
[1764292705220,14.96667496,139.73,139.69,0.71]
[1764292705390,14.96667496,139.73,139.71,9.14486373]
[1764292706023,7.80994492,139.73,139.71,9.14486373]
[1764292706323,16.308864,139.74,139.72,9.14486373]
[1764292706493,3.2,139.73,139.72,0.71]
[1764292707316,7.15203551,139.83,139.72,7.86717148]
[1764292707519,3.2,139.82,139.72,7.86717148]
[1764292707719,7.15203551,139.83,139.81,9.14486373]
[1764292707905,0.49,139.87,139.82,9.85486373]
[1764292708130,7.14949596,139.87,139.84,9.14486373]
[1764292708311,16.308864,139.85,139.84,9.14486373]
[1764292708511,16.308864,139.84,139.74,3.2]
[1764292708827,3.2,139.83,139.82,9.14486373]
[1764292710221,3.2,139.83,139.81,9.14486373]
[1764292710408,3.2,139.83,139.8,9.14486373]
[1764292710613,3.2,139.83,139.81,9.14486373]
[1764292710806,3.2,139.83,139.79,0.71]
[1764292710807,3.2,139.83,139.8,9.14486373]
[1764292711009,8.80994492,139.82,139.8,9.14486373]
[1764292712216,18.3649019,139.87,139.81,9.85486373]
[1764292712426,28.31880892,139.86,139.82,9.14486373]
[1764292712626,28.31880892,139.86,139.82,0.71]
[1764292712929,9.14486373,139.9,139.85,9.14486373]
[1764292713108,3.2,139.89,139.83,0.71]
[1764292713308,3.2,139.88,139.87,9.14486373]
[1764292714303,3.2,139.88,139.86,9.14486373]
[1764292714725,25.60880892,139.87,139.8,0.71]
[1764292714918,25.60880892,139.87,139.74,1.99999999]
[1764292714919,25.60880892,139.87,139.83,9.14486373]
[1764292715231,25.11880892,139.87,139.83,9.14486373]
[1764292715437,25.11880892,139.87,139.85,9.14486373]
[1764292715733,16.308864,139.87,139.86,9.14486373]
[1764292715942,3.2,139.87,139.86,9.14486373]
[1764292716234,3.2,139.87,139.84,0.71]
[1764292716235,3.2,139.87,139.84,9.14486373]
[1764292716445,3.2,139.87,139.84,9.85486373]
[1764292716802,8.80994492,139.88,139.85,9.85486373]
[1764292717031,3.2,139.87,139.85,9.85486373]
[1764292717808,3.2,139.87,139.8,27.0267116]
[1764292717809,3.2,139.87,139.86,9.14486373]
[1764292718010,25.11880892,139.83,139.8,9.14486373]